Cogmind - Beta 15 @@@ ROGUE MODE // 2025.07.24 @ 08:09:24 Player: Fazzonamite Result: Destroyed by Y-45 Defender with Heavy Assault Rifle Performance ------------- Evolutions (2) 1000 Regions Visited (4) 800 Robots Destroyed (38) 190 Value Destroyed (1365) 1365 Prototype IDs (0) 0 Alien Tech Used (0) 0 Bonus (700) 700 TOTAL SCORE: 4055 Bonus ------- Entered Garrisons 200 Used RIF Installer 500 Cogmind --------- Core Integrity 0/550 Matter 290/300 Energy 100/100 System Corruption 13% Temperature Cool (9) Movement Core (50) Location -8/Garrison Parts ------- > --- POWER (1) -------- (None) > --- PROPULSION (3) --- (None) > --- UTILITY (5) ------ (None) > --- WEAPON (2) ------- (None) > --- INVENTORY (5) ---- Light Ion Engine Aluminum Leg Aluminum Leg Spread Laser Peak State ------------ > --- POWER ------------ (None) > --- PROPULSION ------- Armored Treads Aluminum Leg VSS Leg > --- UTILITY ---------- Improved Heat Sink Improved Heat Sink Improved Heat Sink Targeting Computer Light Armor Plating > --- WEAPON ----------- Spread Laser Shotgun > --- INVENTORY -------- Aluminum Leg Aluminum Leg Spread Laser Spread Laser Shotgun [Rating: 22] Favorites ----------- Power Improved Ion Engine Engine Improved Ion Engine Power Core Light Nuclear Core Propulsion Light Treads Treads Light Treads Leg Aluminum Leg Wheel Subdweller Monowheel Flight Unit Flight Unit Utility Improved Heat Sink Device Improved Heat Sink Storage Small Storage Unit Processor Targeting Computer Protection Medium Armor Plating Weapon Shotgun Energy Gun Beam Rifle Ballistic Gun Shotgun Build | -11 -10 -10 -8 -8 ------- Run | Yrd Mat Sub Mat Gar Slots Evolved 4 | . . . 4 . Power . | . . . . . Propulsion 1 | . . . 1 . Utility 3 | . . . 3 . Weapon . | . . . . . Parts Attached 44 | 6 7 6 20 5 Power 5 | 1 2 1 1 . Engine 3 | 1 1 1 . . Core 2 | . 1 . 1 . Reactor . | . . . . . Propulsion 17 | 2 2 2 8 3 Treads 4 | 1 1 . 2 . Leg 6 | . . . 6 . Wheel 4 | 1 1 2 . . Hover . | . . . . . Flight 3 | . . . . 3 Utility 14 | 1 1 3 9 . Device 7 | 1 . 1 5 . Storage 1 | . 1 . . . Processor 2 | . . . 2 . Hackware . | . . . . . Protection 4 | . . 2 2 . Artifact . | . . . . . Weapon 8 | 2 2 . 2 2 Energy Gun 5 | 1 1 . 2 1 Energy Cannon . | . . . . . Ballistic Gun 3 | 1 1 . . 1 Ballistic Cannon . | . . . . . Launcher . | . . . . . Special Weapon . | . . . . . Impact Weapon . | . . . . . Slashing Weapon . | . . . . . Piercing Weapon . | . . . . . Special Melee Weapon . | . . . . . Unidentified Prototypes . | . . . . . Parts Lost 21 | . . 2 11 8 Power 3 | . . 1 2 . Propulsion 8 | . . 1 2 5 Utility 9 | . . . 6 3 Weapon 1 | . . . 1 . Highest Loss Streak 5 | . . 2 3 5 To Critical Strikes 1 | . . . 1 . Average Backups 4 | 3 7 3 2 4 Power . | . 1 . . . Propulsion . | 1 . . . 2 Utility 1 | . 2 1 . . Weapon 1 | . 1 1 1 1 Tool/Special . | . . . . . Unused Backups 13 | . 3 6 . 4 Power 2 | . 1 . . 1 Propulsion 2 | . . . . 2 Utility 5 | . 1 4 . . Weapon 4 | . 1 2 . 1 Tool/Special . | . . . . . Average Slot Usage (%) 88 | . 99 93 82 56 Engine 8 | . 5 12 6 . Core 2 | . 8 1 1 . Treads 11 | . 14 14 9 4 Leg 2 | . . . 6 9 Wheel 11 | . 14 13 9 . Device 12 | . 14 8 14 25 Storage 3 | . 13 1 . . Processor 3 | . . . 10 5 Protection 7 | . . 12 7 . Energy Gun 11 | . 14 14 8 1 Ballistic Gun 11 | . 14 14 8 1 Peak Build Rating 22 | 6 12 13 22 21 Average Rating 13 | 4 10 12 18 14 On Entrance 9 | . 6 12 13 17 Naked Turns 3 | . . . . 3 Heaviest Build 39 | 8 18 31 39 9 Greatest Support 40 | 10 20 20 40 20 Greatest Overweight (x) 1 | . 1 1 1 . Average Overweight (x) . | . . . . . Largest Inventory Capacity 8 | 5 8 8 5 5 Average Capacity 5 | 5 7 5 5 5 Most Carried 8 | 5 8 8 5 5 Average Carried 4 | 4 7 5 3 4 Final Capacity 8 | 5 8 5 5 5 Final Carried 8 | 5 8 5 5 4 Class Distribution -------------------- 74% | Mutant 14% | Scavenger-Mutant 10% | Subdweller-Mutant Dominant Class ---------------- Mutant | -10/Materials Mutant | -10/Subcaves Subdweller-Mutant | -8/Materials Scavenger-Mutant | -8/Garrison Resources | -11 -10 -10 -8 -8 ----------- Run | Yrd Mat Sub Mat Gar Matter Collected 967 | 263 126 124 418 36 Remotely . | . . . . . Salvage Created 1317 | 26 271 196 789 35 Parts 70 | 4 16 14 31 5 Haulers Intercepted . | . . . . . Recyclers Shooed . | . . . . . Parts Field Recycled . | . . . . . Retrieved Matter . | . . . . . Parts Self-Destructed 6 | . . 6 . . Prevented . | . . . . . Kills | -11 -10 -10 -8 -8 ------- Run | Yrd Mat Sub Mat Gar Combat Hostiles Destroyed 34 | . 6 5 20 3 Guns 34 | . 6 5 20 3 Classes Destroyed 8 | 1 4 1 2 . Tunneler 1 | 1 . . . . Recycler 2 | . 1 . 1 . Watcher 1 | . 1 . . . Swarmer 6 | . 3 . . 3 Grunt 20 | . 3 . 17 . Brawler 1 | . . . 1 . Specialist 2 | . . . 2 . Subdweller 5 | . . 5 . . Best Kill Streak 6 | 1 6 2 6 3 Combat Bots Only 6 | . 5 2 6 3 Max Kills in Single Turn 1 | 1 1 1 1 1 Gunslinging . | . . . . . Exploded . | . . . . . Melee . | . . . . . Uniques/NPCs Destroyed . | . . . . . Combat | -11 -10 -10 -8 -8 -------- Run | Yrd Mat Sub Mat Gar Hostile Shots Fired 282 | . 51 27 107 97 Missed 80 | . 16 10 21 33 Hits 202 | . 35 17 86 64 Melee 4 | . . . 1 3 Projectile 198 | . 35 17 85 61 Critical Strikes 7 | . . 1 3 3 Damage Taken 2809 | . 320 358 1446 685 Core 636 | . 42 39 242 313 Absorbed by Shields 63 | . . . . 63 Core Remaining (%) 83 | 100 . 67 . . Volleys Fired 103 | 1 24 12 62 4 Largest 2 | 2 2 2 2 2 Hottest 88 | 70 76 79 88 88 Shots Fired 204 | 2 48 24 122 8 Gun 204 | 2 48 24 122 8 Cannon . | . . . . . Launcher . | . . . . . Special . | . . . . . Kinetic 103 | 1 24 12 62 4 Thermal 101 | 1 24 12 60 4 Explosive . | . . . . . Electromagnetic . | . . . . . Robot Hit Streak 18 | 1 5 10 18 8 Robot Miss Streak 5 | . 3 2 5 3 Penetration Max . | . . . . . Secondary Targets 4 | . . . 3 1 Max Gunslinging Chain 1 | . . . 1 1 Shots Hit Robots 162 | 1 25 19 111 6 Core Hits 152 | 1 10 9 123 9 Critical Kills 1 | . . . 1 . Critical Parts Destroyed 1 | . . . 1 . Critical Strikes 5 | . 2 1 2 . Burn 3 | . 2 1 . . Destroy 2 | . . . 2 . Melee Attacks . | . . . . . Impact . | . . . . . Slashing . | . . . . . Piercing . | . . . . . Sneak Attacks . | . . . . . Combat Hostiles . | . . . . . Follow-up Attacks . | . . . . . Damage Inflicted 2504 | 12 364 322 1723 83 Guns 2504 | 12 364 322 1723 83 Cannons . | . . . . . Explosions . | . . . . . Melee . | . . . . . Ramming . | . . . . . Kinetic 1101 | . 113 144 814 30 Thermal 1403 | 12 251 178 909 53 Explosive . | . . . . . Electromagnetic . | . . . . . Impact . | . . . . . Slashing . | . . . . . Piercing . | . . . . . Highest Corruption 13 | . . . 8 13 Average Corruption 6 | . . . 4 10 Corruption Purged . | . . . . . Corruption Blocked . | . . . . . Effects 17 | . . . 7 10 Message Errors 4 | . . . 1 3 Matter Fused 3 | . . . 2 1 Heat Flow Errors 1 | . . . 1 . Parts Rejected 2 | . . . . 2 Parts Fused 1 | . . . 1 . Data Loss (minor) 1 | . . . 1 . Data Loss (major) 1 | . . . . 1 Alerts 1 | . . . 1 . Misdirections 3 | . . . . 3 Overload Shots . | . . . . . Overflow Damage . | . . . . . Projectiles . | . . . . . Explosions . | . . . . . Melee . | . . . . . Knockbacks . | . . . . . Impact . | . . . . . Kinetic . | . . . . . Secondary . | . . . . . Self-Inflicted Damage . | . . . . . Shots . | . . . . . Rammed 1 | . . . 1 . Targets Rammed 1 | . . . 1 . Kicked . | . . . . . Crushed . | . . . . . Highest Temperature 294 | 9 294 . 228 27 Average Temperature 79 | 6 93 . 74 17 Received Heat Transfer 1098 | . 72 81 729 216 Effects 1 | . 1 . . . Energy Bleed 1 | . 1 . . . Siege Activations . | . . . . . Martial Activations . | . . . . . Shielding Activations . | . . . . . Robots Disrupted . | . . . . . Combat Hostiles . | . . . . . Robots Corrupted . | . . . . . Combat Hostiles . | . . . . . Parts Fried . | . . . . . Impact Corruptions . | . . . . . Robots Melted . | . . . . . Combat Hostiles . | . . . . . Parts Melted 2 | . 1 1 . . Heat Transferred 2512 | 37 777 518 1110 70 Parts Sabotaged . | . . . . . Parts Stolen . | . . . . . Parts Stripped . | . . . . . Power Chain Reactions . | . . . . . Alert | -11 -10 -10 -8 -8 ------- Run | Yrd Mat Sub Mat Gar Maximum Alert Level 2 | . . . 1 2 Low Security (%) 87 | 100 100 . 94 39 Level 1 12 | . . . 5 58 Level 2 . | . . . . 1 Level 3 . | . . . . . Level 4 . | . . . . . Level 5 . | . . . . . High Security . | . . . . . Max Security . | . . . . . Peak Influence 411 | 5 121 . 235 411 Initial 141 | . . . . 141 Average 99 | . 62 . 81 250 Influence Increases 1054 | 5 189 . 545 315 Destroy 0b10 Robot/C 580 | . 120 . 400 60 Destroy 0b10 Robot/NC 20 | 5 10 . 5 . Destroy Leader 112 | . 32 . 80 . Successful Hack 9 | . 9 . . . Destroy Structure 3 | . 3 . . . Partial Spotted 15 | . . . . 15 Lose Combat Pursuer 315 | . 15 . 60 240 Influence Decreases 678 | 5 148 41 328 156 Entered New Map 97 | . . 21 . 76 Time Decay 391 | 5 148 20 218 . Lost Part 190 | . . . 110 80 Squads Dispatched 8 | . 2 . 6 . Investigation 1 | . . . 1 . Extermination . | . . . . . Reinforcement 5 | . 2 . 3 . Assault . | . . . . . Garrison 2 | . . . 2 . Intercept . | . . . . . Searches Triggered . | . . . . . Construction Impeded . | . . . . . Haulers Reinforced . | . . . . . Active Scanning Responses . | . . . . . Cargo Convoy Interrupts . | . . . . . Stealth | -11 -10 -10 -8 -8 --------- Run | Yrd Mat Sub Mat Gar Distress Signals 6 | . 3 . 3 . Communications Jammed . | . . . . . Distress Signals . | . . . . . Times Spotted 84 | . 13 8 33 30 Peak Tracking Total 12 | . 7 2 6 12 Tactical Retreats 8 | . 1 1 2 4 Traps | -11 -10 -10 -8 -8 ------- Run | Yrd Mat Sub Mat Gar Traps Triggered 5 | . . . 2 3 Indirectly . | . . . . . Trap Hack Attempts . | . . . . . Triggered . | . . . . . Disarmed . | . . . . . Reprogrammed . | . . . . . Reused 1 | . . 1 . . Traps Extracted . | . . . . . Installed 1 | . . 1 . . Triggered . | . . . . . Machines | -11 -10 -10 -8 -8 ---------- Run | Yrd Mat Sub Mat Gar Machines Disabled . | . . . . . Max in Single Turn . | . . . . . Machines Repaired . | . . . . . Machines Dismantled . | . . . . . Machines Sabotaged . | . . . . . Overloaded Fab Kills . | . . . . . Hacking | -11 -10 -10 -8 -8 --------- Run | Yrd Mat Sub Mat Gar Machines Accessed 6 | . 3 . 3 . Terminals 4 | . 3 . 1 . Fabricators . | . . . . . Repair Stations . | . . . . . Recycling Units 1 | . . . 1 . Scanalyzers . | . . . . . Garrison Access 1 | . . . 1 . Total Hacks 14 | . 10 . 4 . Successful 7 | . 5 . 2 . Failed 7 | . 5 . 2 . Catastrophic 1 | . . . 1 . Database Lockouts . | . . . . . Manual 13 | . 9 . 4 . Terminals 12 | . 10 . 2 . Fabricators . | . . . . . Repair Stations . | . . . . . Recycling Units 1 | . . . 1 . Scanalyzers . | . . . . . Garrison Access 1 | . . . 1 . Terminal Hacks 2 | . 2 . . . Robot Analysis 2 | . 2 . . . Fabricator Hacks . | . . . . . Repair Station Hacks . | . . . . . Recycling Unit Hacks . | . . . . . Scanalyzer . | . . . . . Garrison Access Hacks 1 | . . . 1 . Unlock Access 1 | . . . 1 . Unauthorized Hacks 3 | . 3 . . . Terminals 3 | . 3 . . . Botnet 3 | . 3 . . . Fabricators . | . . . . . Repair Stations . | . . . . . Recycling Units . | . . . . . Scanalyzers . | . . . . . Garrison Access . | . . . . . Data Cores Recovered . | . . . . . Used . | . . . . . Hacking Detections 3 | . 2 . 1 . Full Trace Events 2 | . 1 . 1 . Feedback Events . | . . . . . Feedback Blocked . | . . . . . Robot Schematics Acquired . | . . . . . Robots Built . | . . . . . Authchips . | . . . . . Time . | . . . . . Total Robot Build Rating . | . . . . . Part Schematics Acquired . | . . . . . Parts Built . | . . . . . Authchips . | . . . . . Time . | . . . . . Total Part Build Rating . | . . . . . Parts Repaired . | . . . . . Time . | . . . . . Parts Recycled . | . . . . . Recycled Matter . | . . . . . Retrieved Matter . | . . . . . Retrieved Components . | . . . . . Parts Scanalyzed . | . . . . . Part Schematics Acquired . | . . . . . Parts Damaged . | . . . . . Bothacking | -11 -10 -10 -8 -8 ------------ Run | Yrd Mat Sub Mat Gar Used RIF Installer 1 | . . . . 1 Robots Hacked . | . . . . . Non-combat . | . . . . . Combat . | . . . . . Robot Hacks Applied . | . . . . . Relay Couplers Released . | . . . . . Fabnet Peak Effective % . | . . . . . Robots Rewired . | . . . . . Allies Hacked . | . . . . . Hacks Repelled . | . . . . . Allies | -11 -10 -10 -8 -8 -------- Run | Yrd Mat Sub Mat Gar Total Allies . | . . . . . Largest Group . | . . . . . Highest-Rated Group . | . . . . . Highest-Rated Ally . | . . . . . Total Orders . | . . . . . Ally Attacks . | . . . . . Total Damage . | . . . . . Kills . | . . . . . Allies Corrupted . | . . . . . Allies Melted . | . . . . . Intel | -11 -10 -10 -8 -8 ------- Run | Yrd Mat Sub Mat Gar Active Infowar (turns) 1500 | 10 402 642 446 . Sensors 986 | . . 540 446 . Seismic 514 | 10 402 102 . . Machine Analysis 244 | . . . 244 . Robot Analysis Total 2 | . 2 . . . Derelict Logs Recovered . | . . . . . Drone Launches . | . . . . . Drone Recoveries . | . . . . . Exploration | -11 -10 -10 -8 -8 ------------- Run | Yrd Mat Sub Mat Gar Turns Passed 2324 | 70 402 1035 604 213 Spaces Moved 1602 | 63 241 733 224 341 Core 158 | 11 . . 19 128 Treads 227 | . 83 98 41 5 Legs 54 | . . . 53 1 Wheels 956 | 52 158 635 111 . Hover . | . . . . . Flight 207 | . . . . 207 Fastest Speed 37 | 50 80 110 50 37 Average Speed 106 | 74 116 130 116 44 Slowest Speed 240 | 80 160 240 170 170 Overloaded Moves . | . . . . . Propulsion Burnouts . | . . . . . Robots Hopped 4 | . . . . 4 Potential Cave-ins . | . . . . . Cave-ins Triggered . | . . . . . Exploration Rate (%) 34 | 5 46 42 30 49 Regions Visited 4 Branch Regions 1 Pre-discovered Areas 1 | . . 1 . . Known Exits Taken 1 | . . . 1 . Unknown Exits Taken 3 | 1 1 1 . . Scrap Searched 8 | . . 8 . . Spaces Dug . | . . . . . Terrain Destroyed . | . . . . . Melee . | . . . . . Projectile . | . . . . . AOE . | . . . . . Terrain Rammed . | . . . . . Walls Destroyed . | . . . . . Machines Disabled . | . . . . . Actions | -11 -10 -10 -8 -8 --------- Run | Yrd Mat Sub Mat Gar Total 2026 | 82 318 791 446 389 Wait 160 | 4 28 12 116 . Move 1591 | 62 240 732 224 333 Hop 3 | . . . . 3 Pick Up 44 | 9 10 12 10 3 Fast Attach 11 | 2 . 1 6 2 Attach 20 | 4 1 4 7 4 Detach . | . . . . . Swap 16 | . 6 2 8 . Drop 38 | . 9 15 11 3 Fire 103 | 1 24 12 62 4 Melee . | . . . . . Ram 1 | . . . 1 . Kick . | . . . . . Crush . | . . . . . Escape Stasis 37 | . . . . 37 Rewire . | . . . . . Trap 1 | . . 1 . . Miscellaneous 1 | . . . 1 . Route ------- -11/Scrapyard -10/Materials (discovered 3 exits: [*Mat x2] / [*Sub]) -10/Subcaves -8/Materials -8/Garrison (discovered 1 exit: [*Mat]) History --------- Turn | Location | Event 5 | -11/Scrapyard | Discovered new exit (range 15) 71 | -11/Scrapyard | Entered Materials 313 | -10/Materials | Build established: Mutant 335 | -10/Materials | Discovered new exit (range 13) 413 | -10/Materials | Discovered new exit (range 12) 460 | -10/Materials | Discovered new exit (range 10) 473 | -10/Materials | Entered Subcaves 500 | -10/Subcaves | Learned location of Zion (-6) 500 | -10/Subcaves | Met a Zionite searching for "candidates" 620 | -10/Subcaves | Disturbed a concealed Subdweller 726 | -10/Subcaves | Discovered new exit (range 7) 1079 | -10/Subcaves | Disturbed a concealed Subdweller 1508 | -10/Subcaves | Entered Materials 1508 | -8/Materials | Evolved 4 slots: Propulsion x1, Utility x3 1825 | -8/Materials | Lost 3 parts (1n2u) 1948 | -8/Materials | Garrison activated, responded to threat 2007 | -8/Materials | Lost 3 parts (1p2u) 2112 | -8/Materials | Identified exit to Garrison 2112 | -8/Materials | Entered Garrison 2164 | -8/Garrison | Triggered checkpoint 2187 | -8/Garrison | Core integrity fell below 50% 2191 | -8/Garrison | Discovered new exit (range 8) 2195 | -8/Garrison | Attempted to access garrison exit controls, blocked by remote lockdown 2231 | -8/Garrison | System corruption reached 10% 2270 | -8/Garrison | Triggered checkpoint 2282 | -8/Garrison | Build established: Scavenger-Mutant 2296 | -8/Garrison | Triggered checkpoint 2316 | -8/Garrison | Triggered checkpoint 2318 | -8/Garrison | Core integrity fell below 20% 2320 | -8/Garrison | Installed Relay Interface Framework 2325 | -8/Garrison | Destroyed by Y-45 Defender with Heavy Assault Rifle Last Messages --------------- 02246_ Field strength at 28. 02247_ Field strength at 23. 02248_ Field strength at 13. 02249_ Field strength at 8. 02250_ Stasis field depleted. 02251_ VSS Leg destroyed. 02261_ System corrupted: Flight Unit rejected. 02261_ Acquired Flight Unit. 02270_ Beams of light sweep through the air. An alarm sounds. 02312_ Flight Unit destroyed. 02312_ Imp. Heat Sink destroyed. 02314_ System corrupted: Imp. Heat Sink rejected. 02316_ Beams of light sweep through the air. An alarm sounds. 02317_ Critical hit (Burn: +37). Initiating installation procedure... 02320_ Relay Interface Framework installed. 02322_ Critical hit (Burn: +37). 02322_ Flight Unit destroyed. Map ----- +----------------------------------------------------+ | ?????????????????????????????????????????????????? | | ?????????????????????????????????????????????????? | | ?????????????????????????????????????????????????? | | ?????????????????????????????????????????????????? | | ?????????????????????????????????????????????????? | | ?????????????????????????????????????????????????? | | ?????????????????????????????????????#####???????? | | ?????????????????????????????????????#!!!#???????? | | ?????????????????????????????????????#! !#???????? | | ?????????????????????????????????????#! !#???????? | | ????????????????????????? ?????????##+##???????? | | ????????????????????????? #?????????# #????????? | | ????????????????????????? #?????????# "????????? | | ????????????????????????? #?????????# "????????? | | ????????????????????????? #?????????# "????????? | | ????????????????????????+ +?????????# #????????? | | ????????????????????????#b Y#?????????# #????????? | | ????????????????????????# #?????????# #????????? | | ????????????????????????# #?????????# #????????? | | ????????????????????????# #?????????# ###??????? | | ????????????????????????# ##????????# ######]] | | ????????????????????????# #????????# + | | ????????????????????????# #????????# ######]] | | ????????????????????????# #?????????# ###??????? | | ????????????????????????# Y#?????????# #????????? | | ????????????????????????#@ #?????????# #????????? | | ????????????????????????# #?????????# #????????? | | ??????????????????????### ########??# #????????? | | ??????????????????????# l## """"#??# "????????? | | ??????????????????????# b "#??# "????????? | | ??????????????????????# ## """"#??# "????????? | | ??????????????????????### g########??# #????????? | | ????????????????????????# l #?????????# #????????? | | ????????????????????????#gg #?????????# #????????? | | ????????????????????????#g #?????????# #????????? | | ???????????????????###### !########### ########?? | | ???????????????????# #?? | | ???????????????????# #### ################## #?? | | ???????????????????# #??# #????????????????# #?? | | ???????????????????# #??# #????????????????# #?? | | ???????????????????# #??# #???????????????" ? | | ???????????????????# #??# ^#??????????????#" " | | #####""""########### #### #??????????????#"""""" | | ^ #??????????????####### | | #????????????????????? | | #????????????????????? | | ## ## ###############????????????????????? | | ## ## #??????????????????????????????????? | | #????????????????????????????????? | | #????????????????????????????????? | +----------------------------------------------------+ Best States ------------- Heat Dissipation 73 Energy Generation 14 Energy Capacity 265 Matter Stores 300 Matter Capacity 300 Sight Range 16 Robot Scan Range 14 Terrain Scan Density 10 Armor Coverage 1025 Evasion (%) 62 Targeting Accuracy 5 Recoil Reduction 1 Item Schematics ----------------- None Robot Schematics ------------------ None Fabricated ------------ Nothing Repaired ---------- Nothing Alien Tech Used ----------------- None Achievements -------------- None Challenges ------------ None Game ------ Seed HardcellNeutronChip Manual? 0 Play Time 00:41:29 Cumulative 204.2 hours Start 2025.07.24 @ 07:03:14 End 2025.07.24 @ 08:09:24 Sessions 1 Manual Loads 0 Difficulty Rogue Special Mode None Game No. 133 Rogue 133 Adventurer 0 Explorer 0 Win Type - Total 5 Types 3/0/1/1/0/0/0/0/0/0 Lore% 60 Gallery% 57 Achievement% 51 Wizard Run 0 Options --------- Layout 2 ASCII 0 Keyboard 0 Movement Mouse Keybinds 0 Fullscreen 1 Font 48/Smallcaps Map View 55x44 Zoom Use 0% Tactical HUD 1 Map Filters NONE Filters NONE Steam 1 RUN: c5d3db55-7bc0-401f-b57b-579e8c6b9c1a